fUSD/lending_fUSD_20240619
["ID","MTS","AMOUNT","RATE_DAILY","PERIOD"]
[329865444,1718775034439,-500.0,0.00013698,2]
[329865445,1718775034449,-500.0,0.00013698,2]
[329865446,1718775034459,-500.0,0.00013698,2]
[329865447,1718775034468,-1314.6,0.00013698,2]
[329865448,1718775034478,-548.91821196,0.00013698,2]
[329865449,1718775034489,-500.0,0.00013698,2]
[329865450,1718775034499,-565.51,0.00013698,2]
[329865451,1718775034509,-500.0,0.00013698,2]
[329865452,1718775034520,-536.70965297,0.00013698,2]
[329865453,1718775034530,-500.0,0.00013698,2]
[329865454,1718775034539,-982.86,0.00013698,2]
[329865455,1718775034549,-500.0,0.00013698,2]
[329865456,1718775034559,-501.70434155,0.00013698,2]
[329865457,1718775034569,-503.7379118,0.00013698,2]
[329865458,1718775034578,-512.11,0.00013698,2]
[329865459,1718775034588,-500.0,0.00013698,2]
[329865460,1718775034603,-919.03,0.00013698,2]
[329865461,1718775034612,-500.0,0.00013698,2]
[329865462,1718775034622,-500.0,0.00013698,2]
[329865463,1718775034632,-157.24187668,0.00013698,2]
[329865464,1718775034642,-577.41,0.00013698,2]
[329865465,1718775034652,-1201.25,0.00013698,2]
[329865466,1718775034662,-500.0,0.00013698,2]
[329865467,1718775034671,-500.0,0.00013698,2]
[329865468,1718775034682,-1022.59,0.00013698,2]
[329865469,1718775034694,-500.0,0.00013698,2]
[329865470,1718775034703,-500.0,0.00013698,2]
[329865471,1718775034713,-500.0,0.00013698,2]
[329865472,1718775034723,-500.0,0.00013698,2]
[329865473,1718775034733,-500.0,0.00013698,2]
[329865474,1718775034743,-500.0,0.00013698,2]
[329865475,1718775034752,-500.0,0.00013698,2]
[329865476,1718775034761,-500.0,0.00013698,2]
[329865477,1718775034772,-500.0,0.00013698,2]
[329865478,1718775034782,-500.0,0.00013698,2]
[329865479,1718775034792,-372.93843893,0.00013698,2]
[329865480,1718775034801,-656.06,0.00013698,2]
[329865481,1718775034811,-601.19,0.00013698,2]
[329865482,1718775034820,-500.0,0.00013698,2]
[329865483,1718775034830,-500.0,0.00013698,2]
[329865484,1718775034840,-619.76,0.00013698,2]
[329865485,1718775034849,-500.0,0.00013698,2]
[329865486,1718775034859,-500.0,0.00013698,2]
[329865487,1718775034869,-500.0,0.00013698,2]
[329865488,1718775034879,-952.82,0.00013698,2]
[329865489,1718775034888,-500.0,0.00013698,2]
[329865490,1718775034897,-500.0,0.00013698,2]
[329865491,1718775034908,-500.0,0.00013698,2]
[329865492,1718775034917,-500.0,0.00013698,2]
[329865493,1718775034927,-500.0,0.00013698,2]
[329865494,1718775034936,-1459.51,0.00013698,2]
[329865495,1718775034946,-503.52,0.00013698,2]
[329865496,1718775034956,-903.0,0.00013698,2]
[329865497,1718775034966,-500.0,0.00013698,2]
[329865498,1718775034977,-500.0,0.00013698,2]
[329865499,1718775034986,-505.98591256,0.00013698,2]
[329865500,1718775034996,-500.0,0.00013698,2]
[329865501,1718775035006,-500.0,0.00013698,2]
[329865502,1718775035016,-500.0,0.00013698,2]
[329865503,1718775035038,-500.0,0.00013698,2]
[329865504,1718775035048,-500.0,0.00013698,2]
[329865505,1718775035058,-500.0,0.00013698,2]
[329865506,1718775035068,-500.0,0.00013698,2]
[329865507,1718775035078,-758.68,0.00013698,2]
[329865508,1718775035088,-500.0,0.00013698,2]
[329865509,1718775035098,-500.0,0.00013698,2]
[329865510,1718775035108,-692.7,0.00013698,2]
[329865511,1718775035117,-500.0,0.00013698,2]
[329865512,1718775035127,-204.05250079,0.00013698,2]
[329865513,1718775035137,-500.0,0.00013698,2]
[329865514,1718775035147,-500.0,0.00013698,2]
[329865515,1718775035163,-500.0,0.00013698,2]
[329865516,1718775035173,-500.0,0.00013698,2]
[329865517,1718775035183,-606.93,0.00013698,2]
[329865518,1718775035193,-500.0,0.00013698,2]
[329865519,1718775035202,-500.0,0.00013698,2]
[329865520,1718775035212,-500.0,0.00013698,2]
[329865521,1718775035223,-500.0,0.00013698,2]
[329865522,1718775035232,-500.0,0.00013698,2]
[329865523,1718775035242,-930.53,0.00013698,2]
[329865524,1718775035252,-500.0,0.00013698,2]
[329865525,1718775035263,-652.78,0.00013698,2]
[329865526,1718775035276,-500.0,0.00013698,2]
[329865527,1718775035286,-500.0,0.00013698,2]
[329865528,1718775035297,-1113.81,0.00013698,2]
[329865529,1718775035307,-1005.86,0.00013698,2]
[329865530,1718775035318,-1000.0,0.00013698,5]
[329865531,1718775035328,-500.0,0.00013698,2]
[329865532,1718775035338,-506.11257848,0.00013698,2]
[329865533,1718775035348,-500.0,0.00013698,2]
[329865534,1718775035358,-1319.03,0.00013698,2]
[329865535,1718775035368,-506.2500513,0.00013698,2]
[329865536,1718775035378,-500.0,0.00013698,2]
[329865537,1718775035388,-500.0,0.00013698,2]
[329865538,1718775035398,-500.0,0.00013698,2]
[329865539,1718775035408,-500.0,0.00013698,2]
[329865540,1718775035419,-250.0,0.00013698,2]
[329865541,1718775035429,-500.0,0.00013698,2]
[329865542,1718775035439,-500.0,0.00013698,2]
[329865543,1718775035449,-500.0,0.00013698,2]
[329865544,1718775035459,-684.04,0.00013698,2]
[329865545,1718775035469,-721.54,0.00013698,2]
[329865546,1718775035481,-864.87,0.00013698,2]
[329865547,1718775035491,-528.70672442,0.00013698,2]
[329865548,1718775035501,-542.26186426,0.00013698,2]
[329865549,1718775035512,-500.0,0.00013698,2]
[329865550,1718775035524,-500.0,0.00013698,2]
[329865551,1718775035535,-507.61,0.00013698,2]
[329865552,1718775035546,-657.04,0.00013698,2]
[329865553,1718775035555,-515.5396577,0.00013698,2]
[329865554,1718775035565,-711.91,0.00013698,2]
[329865555,1718775035575,-500.0,0.00013698,2]
[329865556,1718775035585,-500.0,0.00013698,2]
[329865557,1718775035595,-500.0,0.00013698,2]
[329865558,1718775035606,-530.83669861,0.00013698,2]
[329865559,1718775035637,-500.0,0.00013698,2]
[329865560,1718775035657,-500.0,0.00013698,2]
[329865561,1718775035672,-500.0,0.00013698,2]
[329865562,1718775035689,-500.0,0.00013698,2]
[329865563,1718775035707,-500.0,0.00013698,2]
[329865564,1718775035722,-500.0,0.00013698,2]
[329865565,1718775035738,-500.0,0.00013698,2]
[329865566,1718775035756,-500.0,0.00013698,2]
[329865567,1718775035772,-500.0,0.00013698,2]
[329865568,1718775035786,-220.58271459,0.00013698,2]
[329865569,1718775037522,20294.29543572,9.75e-05,2]
[329865638,1718775039582,-152.91,0.00013032,2]
[329865640,1718775039593,-1659.0,0.00013472,2]
[329865642,1718775039603,-14.97252032,0.00013698,2]
[329865644,1718775039618,-264.44476509,0.00013698,2]
[329865646,1718775039629,-500.0,0.00013698,2]
[329865647,1718775039640,-500.0,0.00013698,2]
[329865648,1718775039650,-500.0,0.00013698,2]
[329865649,1718775039661,-500.0,0.00013698,2]
[329865650,1718775039672,-503.85885505,0.00013698,2]
[329865651,1718775039684,-261.29503687,0.00013698,2]
[329865652,1718775039698,-500.0,0.00013698,2]
[329865653,1718775039709,-520.75313082,0.00013698,2]
[329865654,1718775039720,-541.20957334,0.00013698,2]
[329865655,1718775039731,-500.0,0.00013698,2]
[329865656,1718775039741,-500.0,0.00013698,2]
[329865657,1718775039751,-500.0,0.00013698,2]
[329865658,1718775039761,-500.0,0.00013698,2]
[329865659,1718775039771,-690.27,0.00013698,2]
[329865661,1718775039781,-794.3,0.00013698,2]
[329865662,1718775039791,-500.0,0.00013698,2]
[329865663,1718775039800,-403.06894915,0.00013698,2]
[329865664,1718775039814,-274.25105085,0.00013698,2]
[329865666,1718775039823,-244.69513241,0.00013698,2]
[329865677,1718775039925,-259.41466083,0.00013698,2]
[329865679,1718775039936,-500.0,0.00013698,2]
[329865681,1718775039946,-500.24644112,0.00013698,2]
[329865683,1718775039956,-500.0,0.00013698,2]
[329865685,1718775039966,-512.77724789,0.00013698,2]
[329865686,1718775039976,-308.9663963,0.00013698,2]
[329865687,1718775039987,-500.0,0.00013698,2]
[329865688,1718775039996,-500.0,0.00013698,2]
[329865689,1718775040007,-500.0,0.00013698,2]
[329865690,1718775040017,-500.0,0.00013698,2]
[329865691,1718775040029,-1127.2,0.00013698,2]
[329865692,1718775040039,-624.43,0.00013698,2]
[329865693,1718775040049,-500.0,0.00013698,2]
[329865694,1718775040059,-198.16295649,0.00013698,2]
[329865698,1718775042377,-293.7,0.00013472,2]
[329865699,1718775042389,-789.09709592,0.00013472,2]
[329865700,1718775042400,-747.20290408,0.00013472,2]
[329865701,1718775042410,-301.83704351,0.00013698,2]
[329865702,1718775042420,-391.99974907,0.00013698,2]
[329865703,1718775042432,-108.00025093,0.00013698,2]
[329865704,1718775042442,-268.29104489,0.00013698,2]
[329865705,1718775042453,-500.0,0.00013698,2]
[329865706,1718775042463,-500.0,0.00013698,2]
[329865707,1718775042472,-658.42,0.00013698,2]
[329865708,1718775042483,-500.0,0.00013698,2]
[329865709,1718775042494,-500.0,0.00013698,2]
[329865710,1718775042504,-500.0,0.00013698,2]
[329865711,1718775042514,-584.09,0.00013698,2]
[329865712,1718775042524,-500.0,0.00013698,2]
[329865713,1718775042538,-258.30831714,0.00013698,2]
[329865714,1718775042552,-241.69168286,0.00013698,2]
[329865715,1718775042562,-100.41631714,0.00013698,2]
[329865716,1718775042575,-405.35709528,0.00013698,2]
[329865717,1718775042585,-490.50833568,0.00013698,2]
[329865718,1718775042602,-9.49166432,0.00013698,2]
[329865719,1718775042611,-294.45163552,0.00013698,2]
[329865720,1718775042623,-207.69836448,0.00013698,2]
[329865721,1718775042633,-592.46,0.00013698,2]
[329865722,1718775042644,-500.0,0.00013698,2]
[329865723,1718775042654,-1040.79,0.00013698,2]
[329865724,1718775042672,-500.0,0.00013698,2]
[329865725,1718775042685,-393.01060834,0.00013698,2]
[329865726,1718775042699,-343.00939166,0.00013698,2]
[329865727,1718775042710,-500.0,0.00013698,2]
[329865728,1718775042720,-242.71060834,0.00013698,2]
[329865729,1718775042792,-257.28939166,0.00013698,2]
[329865730,1718775042802,-500.0,0.00013698,2]
[329865731,1718775042813,-500.0,0.00013698,2]
[329865732,1718775042823,-500.0,0.00013698,2]
[329865733,1718775042833,-500.0,0.00013698,2]
[329865734,1718775042843,-945.82,0.00013698,2]
[329865735,1718775042854,-500.0,0.00013698,2]
[329865736,1718775042864,-688.01,0.00013698,2]
[329865737,1718775042875,-500.0,0.00013698,2]
[329865738,1718775042885,-557.54796723,0.00013698,2]
[329865739,1718775042895,-500.0,0.00013698,2]
[329865740,1718775042906,-500.0,0.00013698,2]
[329865741,1718775042916,-973.84,0.00013698,2]
[329865742,1718775042926,-753.85,0.00013698,2]
[329865743,1718775042935,-423.64264111,0.00013698,2]
[329865744,1718775042949,-76.35735889,0.00013698,2]
[329865745,1718775042960,-503.2062639,0.00013698,2]
[329865746,1718775042970,-971.35,0.00013698,2]
[329865747,1718775042980,-500.0,0.00013698,2]
[329865748,1718775042991,-500.0,0.00013698,2]
[329865749,1718775043001,-1067.5,0.00013698,2]
[329865750,1718775043011,-500.0,0.00013698,2]
[329865751,1718775043022,-500.0,0.00013698,2]
[329865752,1718775043035,-286.9648198,0.00013698,2]
[329865753,1718775043069,-213.0351802,0.00013698,2]
[329865754,1718775043079,-500.0,0.00013698,2]
[329865755,1718775043090,-500.2,0.00013698,2]
[329865756,1718775043099,-500.0,0.00013698,2]
[329865757,1718775043110,-500.0,0.00013698,2]
[329865758,1718775043120,-202.08197034,0.00013698,2]
[329865759,1718775043131,-1116.97,0.00013698,2]
[329865760,1718775043140,-500.0,0.00013698,2]
[329865761,1718775043150,-501.91489696,0.00013698,2]
[329865762,1718775043160,-500.0,0.00013698,2]
[329865763,1718775043170,-524.63,0.00013698,2]
[329865764,1718775043180,-662.34,0.00013698,2]
[329865765,1718775043190,-500.0,0.00013698,2]
[329865766,1718775043200,-500.0,0.00013698,2]
[329865767,1718775043210,-500.0,0.00013698,2]
[329865768,1718775043219,-500.0,0.00013698,2]
[329865769,1718775043229,-500.0,0.00013698,2]
[329865770,1718775043239,-425.8593383,0.00013698,2]
[329865771,1718775043249,-500.0,0.00013698,2]
[329865772,1718775043259,-500.0,0.00013698,2]
[329865773,1718775043269,-500.0,0.00013698,2]
[329865774,1718775043280,-534.91758287,0.00013698,2]
[329865775,1718775043290,-626.92763549,0.00013698,2]
[329865776,1718775043306,-500.0,0.00013698,2]
[329865777,1718775043317,-688.47,0.00013698,2]
[329865778,1718775043327,-500.0,0.00013698,2]
[329865779,1718775043338,-500.0,0.00013698,2]
[329865780,1718775043348,-500.0,0.00013698,2]
[329865781,1718775043358,-266.95839429,0.00013698,2]
[329865783,1718775043368,-500.0,0.00013698,2]
[329865785,1718775043378,-500.0,0.00013698,2]
[329865787,1718775043389,-608.05,0.00013698,2]
[329865789,1718775043399,-500.0,0.00013698,2]
[329865791,1718775043410,-936.59,0.00013698,2]
[329865793,1718775043420,-1234.14,0.00013698,2]
[329865795,1718775043430,-861.83,0.00013698,2]
[329865797,1718775043440,-500.0,0.00013698,2]
[329865799,1718775043450,-500.0,0.00013698,2]
[329865801,1718775043460,-500.0,0.00013698,2]
[329865803,1718775043470,-416.81884214,0.00013698,2]
[329865806,1718775043480,-500.0,0.00013698,2]
[329865808,1718775043490,-500.0,0.00013698,2]
[329865810,1718775043500,-500.0,0.00013698,2]
[329865812,1718775043510,-500.0,0.00013698,2]
[329865814,1718775043520,-297.98419688,0.00013698,2]
[329865816,1718775043531,-500.0,0.00013698,2]
[329865818,1718775043541,-567.64,0.00013698,2]
[329865820,1718775043551,-500.0,0.00013698,2]
[329865822,1718775043560,-500.0,0.00013698,2]
[329865824,1718775043570,-500.0,0.00013698,2]
[329865826,1718775043580,-500.0,0.00013698,2]
[329865828,1718775043589,-500.0,0.00013698,2]
[329865831,1718775043600,-503.75520094,0.00013698,2]
[329865833,1718775043613,-500.0,0.00013698,2]
[329865836,1718775043623,-500.0,0.00013698,2]
[329865839,1718775043633,-500.0,0.00013698,2]
[329865842,1718775043643,-500.0,0.00013698,2]
[329865845,1718775043655,-502.75761541,0.00013698,2]
[329865848,1718775043667,-500.0,0.00013698,2]
[329865851,1718775043678,-500.0,0.00013698,2]
[329865855,1718775043690,-500.0,0.00013698,2]
[329865859,1718775043700,-526.46115073,0.00013698,2]
[329865862,1718775043710,-407.93745857,0.00013698,2]
[329865864,1718775043720,-500.0,0.00013698,2]
[329865866,1718775043730,-500.0,0.00013698,2]
[329865868,1718775043740,-500.0,0.00013698,2]
[329865871,1718775043750,-500.0,0.00013698,2]
[329865873,1718775043760,-500.0,0.00013698,2]
[329865875,1718775043770,-1011.67,0.00013698,2]
[329865877,1718775043780,-500.0,0.00013698,2]
[329865879,1718775043790,-500.0,0.00013698,2]
[329865881,1718775043800,-803.71,0.00013698,2]
[329865883,1718775043811,-500.0,0.00013698,2]
[329865885,1718775043821,-862.95,0.00013698,2]
[329865887,1718775043831,-500.0,0.00013698,2]
[329865889,1718775043841,-556.32,0.00013698,2]
[329865891,1718775043852,-500.0,0.00013698,2]
[329865893,1718775043863,-530.74536704,0.00013698,2]
[329865895,1718775043873,-500.0,0.00013698,2]
[329865898,1718775043883,-2079.85,0.00013698,2]
[329865900,1718775043893,-842.6,0.00013698,2]
[329865902,1718775043903,-500.0,0.00013698,2]
[329865904,1718775043914,-500.0,0.00013698,2]
[329865906,1718775043924,-500.0,0.00013698,2]
[329865908,1718775043934,-500.0,0.00013698,2]
[329865910,1718775043944,-790.78,0.00013698,2]
[329865912,1718775043954,-500.0,0.00013698,2]
[329865914,1718775043963,-502.1477173,0.00013698,2]
[329865916,1718775043974,-1059.52,0.00013698,2]
[329865918,1718775043984,-500.0,0.00013698,2]
[329865920,1718775043995,-511.38,0.00013698,2]
[329865922,1718775044005,-500.0,0.00013698,2]
[329865924,1718775044015,-500.0,0.00013698,2]
[329865926,1718775044025,-500.0,0.00013698,2]
[329865928,1718775044035,-696.34,0.00013698,2]
[329865930,1718775044046,-500.0,0.00013698,2]
[329865932,1718775044057,-881.92,0.00013698,2]
[329865935,1718775044067,-500.0,0.00013698,2]
[329865937,1718775044078,-989.77,0.00013698,2]
[329865939,1718775044088,-500.0,0.00013698,2]
[329865941,1718775044098,-500.0,0.00013698,2]
[329865943,1718775044108,-500.0,0.00013698,2]
[329865945,1718775044119,-520.04142016,0.00013698,2]
[329865947,1718775044130,-500.0,0.00013698,2]
[329865949,1718775044140,-500.0,0.00013698,2]
[329865951,1718775044150,-500.0,0.00013698,2]
[329865953,1718775044160,-500.0,0.00013698,2]
[329865955,1718775044170,-500.0,0.00013698,2]
[329865957,1718775044180,-500.0,0.00013698,2]
[329865959,1718775044190,-500.0,0.00013698,2]
[329865961,1718775044200,-500.0,0.00013698,2]
[329865963,1718775044211,-500.0,0.00013698,2]
[329865965,1718775044221,-500.0,0.00013698,2]
[329865967,1718775044232,-500.0,0.00013698,2]
[329865969,1718775044242,-500.0,0.00013698,2]
[329865971,1718775044252,-500.0,0.00013698,2]
[329865973,1718775044262,-1404.43,0.00013698,2]
[329865975,1718775044272,-500.0,0.00013698,2]
[329865977,1718775044284,-602.69,0.00013698,2]
[329865980,1718775044293,-504.4766248,0.00013698,2]
[329865982,1718775044303,-1104.03,0.00013698,2]
[329865984,1718775044313,-500.0,0.00013698,2]
[329865986,1718775044323,-958.25,0.00013698,2]
[329865989,1718775044333,-500.0,0.00013698,2]
[329865990,1718775044343,-717.68,0.00013698,2]
[329865991,1718775044353,-2653.31,0.00013698,2]
[329865992,1718775044364,-500.0,0.00013698,2]
[329865993,1718775044373,-500.0,0.00013698,2]
[329865994,1718775044383,-500.0,0.00013698,2]
[329865995,1718775044394,-500.0,0.00013698,2]
[329865996,1718775044404,-500.0,0.00013698,2]
[329865997,1718775044415,-500.0,0.00013698,2]
[329865998,1718775044424,-500.0,0.00013698,2]
[329865999,1718775044434,-1439.56,0.00013698,2]
[329866000,1718775044444,-500.0,0.00013698,2]
[329866001,1718775044454,-500.0,0.00013698,2]
[329866002,1718775044464,-500.0,0.00013698,2]
[329866003,1718775044474,-500.0,0.00013698,2]
[329866004,1718775044484,-2273.61,0.00013698,2]
[329866005,1718775044494,-500.0,0.00013698,2]
[329866006,1718775044503,-500.0,0.00013698,2]
[329866007,1718775044513,-500.0,0.00013698,2]
[329866008,1718775044523,-1737.25,0.00013698,2]
[329866009,1718775044535,-816.19,0.00013698,2]
[329866010,1718775044545,-500.0,0.00013698,2]
[329866011,1718775044555,-519.48,0.00013698,2]
[329866012,1718775044566,-500.0,0.00013698,2]
[329866013,1718775044577,-151.0,0.00013698,2]
[329866014,1718775044587,-1072.7,0.00013698,2]
[329866015,1718775044599,-854.47,0.00013698,2]
[329866016,1718775044611,-993.93,0.00013698,2]
[329866017,1718775044621,-1414.19,0.00013698,2]
[329866018,1718775044632,-257.177875,0.00013698,2]
[329866019,1718775044644,-1295.31,0.00013698,2]
[329866020,1718775044655,-311.06428915,0.00013698,2]
[329866021,1718775044664,-535.71943921,0.00013698,2]
[329866022,1718775044674,-500.0,0.00013698,2]
[329866023,1718775044685,-811.16,0.00013698,2]
[329866024,1718775044695,-704.19,0.00013698,2]
[329866025,1718775044705,-1871.95,0.00013698,2]
[329866026,1718775044715,-500.0,0.00013698,2]
[329866027,1718775044725,-569.77,0.00013698,2]
[329866028,1718775044735,-481.32834069,0.00013698,2]
[329866029,1718775044745,-2290.89,0.00013698,2]
[329866030,1718775044755,-1489.82,0.00013698,2]
[329866031,1718775044765,-1359.48,0.00013698,2]
[329866032,1718775044775,-500.0,0.00013698,2]
[329866033,1718775044785,-1950.19,0.00013698,2]
[329866034,1718775044795,-500.0,0.00013698,2]
[329866035,1718775044804,-500.0,0.00013698,2]
[329866036,1718775044814,-500.0,0.00013698,2]
[329866037,1718775044824,-500.0,0.00013698,2]
[329866038,1718775044834,-1373.21,0.00013698,2]
[329866039,1718775044844,-500.0,0.00013698,2]
[329866040,1718775044854,-1403.48,0.00013698,2]
[329866041,1718775044864,-959.47,0.00013698,2]
[329866042,1718775044873,-500.0,0.00013698,2]
[329866043,1718775044884,-954.41,0.00013698,2]
[329866044,1718775044894,-753.48,0.00013698,2]
[329866045,1718775044904,-500.0,0.00013698,2]
[329866046,1718775044915,-516.87998936,0.00013698,2]
[329866047,1718775044925,-500.0,0.00013698,2]
[329866048,1718775044935,-500.0,0.00013698,2]
[329866049,1718775044945,-1498.39,0.00013698,2]
[329866050,1718775044955,-500.0,0.00013698,2]
[329866051,1718775044965,-2190.48,0.00013698,2]
[329866052,1718775044975,-697.64,0.00013698,2]
[329866053,1718775044985,-714.23,0.00013698,2]
[329866054,1718775044995,-500.0,0.00013698,2]
[329866055,1718775045004,-692.55,0.00013698,2]
[329866056,1718775045015,-500.0,0.00013698,2]
[329866057,1718775045025,-500.0,0.00013698,2]
[329866058,1718775045036,-969.12,0.00013698,2]
[329866059,1718775045045,-500.0,0.00013698,2]
[329866060,1718775045055,-1805.75,0.00013698,2]
[329866061,1718775045065,-793.06,0.00013698,2]
[329866062,1718775045075,-500.0,0.00013698,2]
[329866063,1718775045084,-2805.04,0.00013698,2]
[329866064,1718775045094,-1077.1,0.00013698,2]
[329866065,1718775045104,-1588.34,0.00013698,2]
[329866066,1718775045113,-2836.97,0.00013698,2]
[329866067,1718775045123,-733.13,0.00013698,2]
[329866068,1718775045133,-1485.37,0.00013698,2]
[329866069,1718775045143,-500.0,0.00013698,2]
[329866070,1718775045153,-1696.44,0.00013698,2]
[329866071,1718775045163,-500.0,0.00013698,2]
[329866072,1718775045172,-1373.6,0.00013698,2]
[329866073,1718775045182,-1397.59,0.00013698,2]
[329866074,1718775045192,-1586.45,0.00013698,2]
[329866075,1718775045202,-500.0,0.00013698,2]
[329866076,1718775045211,-500.0,0.00013698,2]
[329866077,1718775045221,-500.0,0.00013698,2]
[329866078,1718775045231,-558.92,0.00013698,2]
[329866079,1718775045241,-570.0,0.00013698,2]
[329866080,1718775045251,-500.0,0.00013698,2]
[329866081,1718775045260,-2021.7,0.00013698,2]
[329866082,1718775045270,-1537.37,0.00013698,2]
[329866083,1718775045280,-504.055745,0.00013698,2]
[329866084,1718775045290,-500.0,0.00013698,2]
[329866085,1718775045300,-632.49,0.00013698,2]
[329866086,1718775045310,-307.08324542,0.00013698,2]
[329866087,1718775045320,-1345.97,0.00013698,2]
[329866088,1718775045332,-2561.23,0.00013698,2]
[329866089,1718775045344,-1041.25,0.00013698,2]
[329866090,1718775045354,-1918.84,0.00013698,2]
[329866091,1718775045364,-520.82,0.00013698,2]
[329866092,1718775045374,-500.0,0.00013698,2]
[329866093,1718775045383,-500.0,0.00013698,2]
[329866094,1718775045394,-500.0,0.00013698,2]
[329866095,1718775045404,-500.0,0.00013698,2]
[329866096,1718775045414,-512.6178166,0.00013698,2]
[329866097,1718775045424,-874.46,0.00013698,2]
[329866098,1718775045434,-500.0,0.00013698,2]
[329866099,1718775045444,-500.0,0.00013698,2]
[329866100,1718775045454,-500.0,0.00013698,2]
[329866101,1718775045465,-500.0,0.00013698,2]
[329866102,1718775045475,-500.0,0.00013698,2]
[329866103,1718775045484,-500.0,0.00013698,2]
[329866104,1718775045493,-1483.13,0.00013698,2]
[329866105,1718775045503,-441.95708341,0.00013698,2]
[329866106,1718775045512,-2573.6,0.00013698,2]
[329866107,1718775045522,-1463.8,0.00013698,2]
[329866108,1718775045533,-500.0,0.00013698,2]
[329866109,1718775045543,-513.15,0.00013698,2]
[329866110,1718775045552,-1779.03,0.00013698,2]
[329866111,1718775045562,-604.76,0.00013698,2]
[329866112,1718775045572,-500.0,0.00013698,2]
[329866113,1718775045583,-656.59,0.00013698,2]
[329866114,1718775045593,-500.0,0.00013698,2]
[329866115,1718775045603,-500.0,0.00013698,2]
[329866116,1718775045617,-500.0,0.00013698,2]
[329866117,1718775045627,-500.0,0.00013698,2]
[329866118,1718775045637,-1138.97,0.00013698,2]
[329866119,1718775045646,-500.0,0.00013698,2]
[329866120,1718775045656,-625.1986485,0.00013698,2]
[329866121,1718775045666,-500.0,0.00013698,2]
[329866122,1718775045676,-1136.44,0.00013698,2]
[329866123,1718775045687,-500.0,0.00013698,2]
[329866124,1718775045698,-500.0,0.00013698,2]
[329866125,1718775045708,-500.0,0.00013698,2]
[329866126,1718775045719,-663.99,0.00013698,2]
[329866127,1718775045729,-500.0,0.00013698,2]
[329866128,1718775045739,-500.0,0.00013698,2]
[329866129,1718775045750,-500.0,0.00013698,2]
[329866130,1718775045760,-500.0,0.00013698,2]
[329866131,1718775045771,-500.0,0.00013698,2]
[329866132,1718775045784,-534.37,0.00013698,2]
[329866133,1718775045794,-2296.6,0.00013698,2]
[329866134,1718775045803,-500.0,0.00013698,2]
[329866135,1718775045813,-500.0,0.00013698,2]
[329866136,1718775045823,-500.0,0.00013698,2]
[329866137,1718775045832,-742.08,0.00013698,2]
[329866138,1718775045842,-542.94,0.00013698,2]
[329866139,1718775045852,-2357.75,0.00013698,2]
[329866140,1718775045861,-500.0,0.00013698,2]
[329866141,1718775045871,-500.0,0.00013698,2]
[329866142,1718775045880,-500.0,0.00013698,2]
[329866143,1718775045890,-958.25,0.00013698,2]
[329866144,1718775045900,-500.0,0.00013698,2]
[329866145,1718775045909,-1567.85,0.00013698,2]
[329866146,1718775045919,-500.0,0.00013698,2]
[329866147,1718775045929,-500.0,0.00013698,2]